fUSD/lending_fUSD_20240628
["ID","MTS","AMOUNT","RATE_DAILY","PERIOD"]
[330582864,1719587433986,-448.0,0.00017844,2]
[330582865,1719587433996,-616.0,0.00017844,2]
[330582866,1719587434006,-155.0,0.00017889,2]
[330582867,1719587434016,-173.76628846,0.00017889,2]
[330582868,1719587434026,-1196.18838586,0.00017889,2]
[330582869,1719587434035,-747.88,0.0001789,3]
[330582870,1719587434045,-1000.0,0.000179,3]
[330582871,1719587434054,-72958.7327878,0.000179,2]
[330582879,1719587438960,-788.1795791,0.00017253,2]
[330582881,1719587438970,-851.27355,0.0001782,2]
[330582882,1719587438980,-2871.36687088,0.000179,2]
[330582888,1719587439681,-24169.90034132,0.000179,2]
[330582890,1719587439691,-65370.53546751,0.000179,2]
[330582926,1719587441537,-38933.55919592,0.000179,2]
[330582941,1719587443720,2000.0,0.00025,60]
[330582942,1719587444130,-717.3917686,0.00013999,2]
[330582943,1719587444140,-9549.27034419,0.000179,2]
[330582944,1719587444152,-917.79,0.000179,2]
[330582945,1719587444164,-9158.92095566,0.000179,2]
[330582946,1719587444176,-1221.4656552,0.000179,2]
[330582947,1719587444791,-367.34001569,0.00014099,5]
[330582949,1719587444802,-2826.20126348,0.000179,2]
[330582976,1719587447240,-851.9,0.000179,2]
[330582977,1719587447252,-1521.95,0.000179,2]
[330582978,1719587447263,-11153.34885015,0.000179,2]
[330582982,1719587468824,1000.0,0.00031498,30]
[330582983,1719587488467,1000.0,0.00031498,30]
[330582984,1719587518665,1000.0,0.00031498,30]
[330582985,1719587530203,1000.0,0.00025,60]
[330582986,1719587569514,550.00000507,0.00031498,30]
[330582987,1719587581539,1000.0,0.00031498,30]
[330582988,1719587584502,18397.23919772,0.00031498,30]
[330582989,1719587598184,1000.0,0.00031498,30]
[330582990,1719587621259,1000.0,0.00031498,30]
[330582991,1719587654220,1500.0,0.00031498,30]
[330582992,1719587666699,1500.0,0.00031498,30]
[330582993,1719587667157,1000.0,0.00031498,30]
[330582994,1719587667573,1500.0,0.00031498,30]
[330582995,1719587668397,1500.0,0.00031498,30]
[330582996,1719587669160,1500.0,0.00031498,30]
[330582997,1719587670488,1500.0,0.00031498,30]
[330582998,1719587684083,3000.0,0.00031498,30]
[330582999,1719587697406,500.0,0.00026,120]
[330583000,1719587772987,1000.0,0.00031498,30]
[330583001,1719587782660,1000.0,0.00031498,30]
[330583002,1719587789448,1000.0,0.00031498,30]
[330583003,1719587797719,1000.0,0.00031498,30]
[330583005,1719587805082,1000.0,0.00031498,30]
[330583006,1719587812113,340.0,0.00031498,30]
[330583007,1719587846781,1000.0,0.00031498,30]
[330583008,1719587853562,1000.0,0.00031498,30]
[330583009,1719587860755,1000.0,0.00031498,30]
[330583010,1719587868741,1000.0,0.00031498,30]
[330583015,1719587948883,3000.0,0.00031498,30]
[330583016,1719587953140,1000.0,0.00031498,30]
[330583017,1719587973061,1500.0,0.00031498,30]
[330583018,1719587973530,1500.0,0.00031498,30]
[330583019,1719588034294,1500.0,0.00031519,30]
[330583020,1719588035772,1500.0,0.00031519,30]
[330583021,1719588036639,1500.0,0.00031519,30]
[330583022,1719588037317,1500.0,0.00031519,30]
[330583023,1719588038133,1500.0,0.00031519,30]
[330583024,1719588038887,1500.0,0.00031519,30]
[330583025,1719588039660,1500.0,0.00031519,30]
[330583026,1719588040717,1500.0,0.00031519,30]
[330583027,1719588041434,1500.0,0.00031519,30]
[330583029,1719588067012,100000.0,0.00031519,30]
[330583031,1719588089725,1500.0,0.00031519,30]
[330583032,1719588090736,1500.0,0.00031519,30]
[330583033,1719588091510,1500.0,0.00031519,30]
[330583034,1719588092290,1500.0,0.00031519,30]
[330583035,1719588093065,1500.0,0.00031519,30]
[330583036,1719588093891,1500.0,0.00031519,30]
[330583037,1719588094657,1500.0,0.00031519,30]
[330583038,1719588095542,1500.0,0.00031519,30]
[330583039,1719588096499,1500.0,0.00031519,30]
[330583040,1719588097189,1500.0,0.00031519,30]
[330583041,1719588098068,1500.0,0.00031519,30]
[330583042,1719588134233,200.0,0.00031519,30]
[330583045,1719588243392,2000.0,0.00031519,30]
[330583046,1719588245688,2000.0,0.00031519,30]
[330583047,1719588247247,2000.0,0.00031519,30]
[330583048,1719588249553,2000.0,0.00031519,30]
[330583049,1719588423114,12937.0,0.00031519,30]
[330583060,1719588632036,-1135.31489135,0.00013736,2]
[330583062,1719588632049,-17119.60048627,0.00013736,2]
[330583064,1719588632059,-439.3,0.00014905,2]
[330583065,1719588632070,-150.0,0.000162,2]
[330583068,1719588632080,-200.0,0.00016313,2]
[330583071,1719588632090,-10000.0,0.00016316,2]
[330583073,1719588632100,-50000.0,0.00016316,2]
[330583076,1719588632112,-250.0,0.0001637,2]
[330583077,1719588632121,-320.0,0.00016675,2]
[330583078,1719588632131,-166.39,0.00016704,2]
[330583079,1719588632142,-3765.5915,0.00016712,2]
[330583080,1719588632152,-321.82,0.00016741,2]
[330583081,1719588632162,-10604.18,0.00016789,2]
[330583082,1719588632172,-32894.81,0.00016789,2]
[330583083,1719588632181,-242.03254915,0.00016808,2]
[330583084,1719588632191,-153.24,0.00016842,2]
[330583085,1719588632200,-166.77,0.00016851,2]
[330583086,1719588632210,-153.24,0.00016905,2]
[330583087,1719588632220,-153.24,0.00016968,2]
[330583088,1719588632229,-680.0,0.00016974,2]
[330583089,1719588632241,-877.41,0.00016986,3]
[330583090,1719588632250,-153.24,0.0001703,2]
[330583091,1719588632259,-153.24,0.00017093,2]
[330583092,1719588632268,-153.24,0.00017156,2]
[330583093,1719588632277,-439.3,0.00017169,2]
[330583094,1719588632286,-153.24,0.00017218,2]
[330583095,1719588632295,-423.99,0.00017233,2]
[330583096,1719588632305,-354.56,0.00017233,2]
[330583097,1719588632314,-164.73,0.00017233,2]
[330583098,1719588632324,-354.56,0.00017233,2]
[330583099,1719588632333,-423.99,0.00017233,2]
[330583100,1719588632343,-164.73,0.00017233,2]
[330583101,1719588632352,-164.73,0.00017233,2]
[330583102,1719588632362,-354.56,0.00017233,2]
[330583103,1719588632372,-233.81,0.00017233,2]
[330583104,1719588632381,-461.67443589,0.00017253,2]
[330583105,1719588632391,-6221.87942226,0.00017259,2]
[330583106,1719588632401,-153.24,0.00017281,2]
[330583107,1719588632411,-847.98,0.000173,2]
[330583108,1719588632420,-709.12,0.000173,2]
[330583109,1719588632429,-300.0,0.000173,2]
[330583110,1719588632439,-329.46,0.000173,2]
[330583111,1719588632448,-423.99,0.000173,2]
[330583112,1719588632458,-352.08,0.000173,2]
[330583113,1719588632467,-164.73,0.000173,2]
[330583114,1719588632477,-354.56,0.000173,2]
[330583115,1719588632486,-153.24,0.00017344,2]
[330583116,1719588632498,-153.24,0.00017406,2]
[330583117,1719588632507,-3787.38361081,0.00017444,2]
[330583118,1719588632516,-153.24,0.00017469,2]
[330583119,1719588632526,-759.5775071,0.000175,2]
[330583120,1719588632535,-153.24,0.00017532,2]
[330583121,1719588632545,-1429.93,0.00017559,2]
[330583122,1719588632554,-415.49090939,0.00017563,2]
[330583123,1719588632564,-153.24,0.00017595,2]
[330583124,1719588632573,-201.05779604,0.000176,2]
[330583125,1719588632583,-150.31,0.000176,2]
[330583126,1719588632592,-150.0,0.000176,2]
[330583127,1719588632601,-164.73,0.000176,2]
[330583128,1719588632610,-426.61,0.000176,2]
[330583129,1719588632620,-304.38,0.000176,2]
[330583130,1719588632630,-302.63,0.000176,2]
[330583131,1719588632640,-468.08,0.000176,2]
[330583132,1719588632654,-423.99,0.000176,2]
[330583133,1719588632664,-164.73,0.000176,2]
[330583134,1719588632673,-354.56,0.000176,2]
[330583135,1719588632682,-150.0,0.000176,2]
[330583136,1719588632692,-423.99,0.000176,2]
[330583137,1719588632702,-354.56,0.000176,2]
[330583138,1719588632711,-150.0,0.000176,2]
[330583139,1719588632720,-164.73,0.000176,2]
[330583140,1719588632732,-600.0,0.000176,6]
[330583141,1719588632743,-153.24,0.00017657,2]
[330583142,1719588632752,-311.6,0.0001769,3]
[330583143,1719588632762,-35009.9324,0.000177,2]
[330583144,1719588632771,-274.6897,0.000177,2]
[330583145,1719588632780,-2841.727,0.000177,2]
[330583146,1719588632790,-1252.7833,0.000177,2]
[330583147,1719588632799,-438.2805,0.000177,2]
[330583148,1719588632808,-5854.2673,0.000177,2]
[330583149,1719588632818,-95098.2867,0.000177,2]
[330583150,1719588632827,-1200.0,0.000177,6]
[330583151,1719588632836,-153.24,0.0001772,2]
[330583152,1719588632845,-202.21096,0.0001772,2]
[330583153,1719588632854,-150.0,0.00017721,2]
[330583154,1719588632863,-4291.7394,0.000178,2]
[330583155,1719588632872,-100000.0,0.000178,2]
[330583156,1719588632881,-17269.4566,0.000178,2]
[330583157,1719588632890,-2550.0931,0.000178,2]
[330583158,1719588632899,-698.4351,0.000178,2]
[330583159,1719588632912,-1800.0,0.000178,6]
[330583160,1719588632922,-491.89919189,0.00017829,2]
[330583161,1719588632933,-176.81979758,0.000179,2]
[330583162,1719588632942,-3189.0562902,0.000179,2]
[330583163,1719588632952,-2400.0,0.000179,6]
[330583164,1719588632961,-456.768,0.0001791,2]
[330583165,1719588632971,-156.75800946,0.0001799,2]
[330583166,1719588632980,-1027.6477962,0.00017999,5]
[330583167,1719588632992,-1027.64779621,0.00017999,5]
[330583168,1719588633001,-1043.0,0.00018,2]
[330583169,1719588633011,-854.68975143,0.00018,2]
[330583170,1719588633019,-151.04160615,0.00018,2]
[330583171,1719588633029,-220975.91499226,0.00018,2]
[330583172,1719588633042,-52365.2727312,0.00018,2]
[330583173,1719588633053,-551.29288503,0.00018,2]
[330583174,1719588633064,-1610.9642997,0.00018,2]
[330583175,1719588633076,-3556.21712772,0.00018,2]
[330583176,1719588633300,-21999.20027653,0.00018,2]
[330583177,1719588633313,-6520.0,0.00018,2]
[330583178,1719588633325,-877.41,0.00018,2]
[330583179,1719588633336,-30312.120016,0.00018,2]
[330583180,1719588633348,-759573.22592952,0.00018,2]
[330583200,1719588638403,-400.81457237,0.000179,2]
[330583204,1719588638415,-87.95525283,0.000179,2]
[330583207,1719588638425,-212.04474717,0.00018,2]
[330583210,1719588638437,-27145.6576074,0.00018,2]
[330583211,1719588638449,-3147.39264968,0.00018,2]
[330583212,1719588638460,-666.23816241,0.00018,2]
[330583213,1719588638472,-288.81265547,0.00018,2]
[330583214,1719588638483,-1602.26575962,0.00018,2]
[330583215,1719588640247,-597.12914951,0.00018,2]
[330583217,1719588640261,-343.13959362,0.00018,2]
[330583219,1719588640274,-1348.6299998,0.00018,2]
[330583221,1719588641059,-27804.48745662,0.00018,2]
[330583222,1719588641098,-1672.47034842,0.00018,2]
[330583239,1719588643683,-1301.3,0.00018,2]
[330583240,1719588643697,-1283.33901254,0.00018,2]
[330583241,1719588643709,-709.98364794,0.00018,2]
[330583242,1719588643722,-1138.50441589,0.00018,2]
[330583243,1719588643735,-501.02048023,0.00018,2]
[330583244,1719588643748,-2492.56313245,0.00018,2]
[330583245,1719588643761,-400.35100982,0.00018,2]
[330583246,1719588643773,-1000.0,0.00018,2]
[330583247,1719588643786,-23726.51714937,0.00018,2]
[330583248,1719588643798,-621.91316261,0.00018,2]
[330583249,1719588643810,-27905.70557583,0.00018,2]
[330583250,1719588643822,-6556.0,0.00018,2]
[330583251,1719588643835,-614.98003177,0.00018,2]
[330583252,1719588643847,-655.16092701,0.00018,2]
[330583253,1719588643860,-72510.52040621,0.00018,2]
[330583254,1719588643872,-137106.99231496,0.00018,2]
[330583260,1719588646053,-150.0,0.00017721,2]
[330583262,1719588646063,-187.08969517,0.00018,2]
[330583290,1719588647389,-150799.99,0.00018,2]
[330583291,1719588647404,-2759.37216379,0.00018,2]
[330583292,1719588647416,-21264.49106437,0.00018,2]
[330583293,1719588647435,-2787.44339086,0.00018,2]
[330583294,1719588647447,-651.87200227,0.00018,2]
[330583295,1719588647459,-620.1702649,0.00018,2]
[330583296,1719588647471,-274.4540204,0.00018,2]
[330583297,1719588647483,-377.33058206,0.00018,2]
[330583298,1719588647495,-602.00844115,0.00018,2]
[330583299,1719588647511,-613.53,0.00018,2]
[330583300,1719588647522,-1523.00718957,0.00018,2]
[330583302,1719588810892,3000.0,0.00031519,30]
[330583303,1719588827075,54770.34878601,0.00031519,120]
[330583304,1719588855466,1210.44976312,0.00031519,120]
[330583305,1719588857229,3000.0,0.00031519,30]
[330583306,1719588871578,929.98752772,6.94e-05,2]
[330583307,1719588889499,7004.50813683,0.00031519,30]
[330583308,1719588891774,3000.0,0.00031519,30]
[330583309,1719588903870,5073.36581717,0.00031519,120]
[330583311,1719588916619,368.47136735,8.412e-05,2]
[330583312,1719588918047,150.0,6.94e-05,2]
[330583313,1719588918068,150.0,6.94e-05,2]
[330583314,1719588918090,5.25433982,6.94e-05,2]
[330583315,1719588922743,150.0,6.94e-05,2]
[330583316,1719588922765,150.0,6.94e-05,2]
[330583317,1719588922788,150.0,6.94e-05,2]
[330583318,1719588922810,150.0,6.94e-05,2]
[330583319,1719588922836,150.0,6.94e-05,2]
[330583320,1719588922859,150.0,6.94e-05,2]
[330583321,1719588922881,150.0,6.94e-05,2]
[330583322,1719588922902,260.03108902,6.94e-05,2]
[330583323,1719588922923,3394.2025858,6.94e-05,2]
[330583324,1719588939347,150.0,8.412e-05,2]
[330583325,1719588939371,150.0,8.412e-05,2]
[330583326,1719588939395,80.09571427,8.412e-05,2]
[330583327,1719588948813,69.90428573,8.412e-05,2]
[330583328,1719588948838,85.20135268,8.412e-05,2]
[330583329,1719588950578,117.98606596,8.412e-05,2]
[330583330,1719588950601,150.0,8.412e-05,2]
[330583331,1719588950623,326.47910854,8.412e-05,2]
[330583332,1719588950716,626.84039305,0.00031519,120]
[330583333,1719588955772,150.0,8.412e-05,2]
[330583334,1719588955797,288.32556411,8.412e-05,2]
[330583335,1719588964732,6.13961039,8.412e-05,2]
[330583336,1719588964758,150.0,8.412e-05,2]
[330583337,1719588964781,150.0,8.412e-05,2]
[330583338,1719588964804,143.85598899,8.412e-05,2]
[330583339,1719588964971,6.14401101,6.94e-05,2]
[330583340,1719588964995,953.18301802,6.94e-05,2]
[330583341,1719588969598,249.62568508,8.412e-05,2]
[330583343,1719588981338,4217.65555531,8.412e-05,2]
[330583344,1719588981944,171.47964822,5e-05,2]
[330583345,1719588982125,530.11971413,8.412e-05,2]
[330583346,1719588986282,450.0,8.412e-05,2]
[330583347,1719588986641,295.0,8.412e-05,2]
[330583348,1719588988901,496.10852137,8.412e-05,2]
[330583349,1719589002366,296.02262439,8.412e-05,2]
[330583350,1719589002684,155.0,8.412e-05,2]
[330583351,1719589008519,340.839913,8.412e-05,2]
[330583352,1719589012737,449.99559938,8.412e-05,2]
[330583358,1719589026747,430.84060594,0.00031519,120]
[330583359,1719589029234,528.94376331,0.00010196,2]
[330583362,1719589036819,359.85315203,0.00031519,120]
[330583371,1719589054698,157.27940866,0.00010196,2]
[330583384,1719589082102,150.0,0.00031519,30]
[330583443,1719589648114,1439.7,0.00031603,30]
[330583444,1719589648548,1439.7,0.00031603,30]
[330583445,1719589648914,1439.7,0.00031603,30]
[330583446,1719589649299,1439.7,0.00031603,30]
[330583447,1719589649382,830.55,0.00031603,30]
[330583448,1719589649437,1439.7,0.00031603,30]
[330583449,1719589649574,830.55,0.00031603,30]
[330583450,1719589649705,500.0,0.00031603,30]
[330583451,1719589649818,1437.05,0.00031603,30]
[330583452,1719589650020,830.55,0.00031603,30]
[330583453,1719589650072,500.0,0.00031603,30]
[330583454,1719589650122,1437.05,0.00031603,30]
[330583455,1719589650160,1439.7,0.00031603,30]
[330583456,1719589650200,830.55,0.00031603,30]
[330583457,1719589650259,500.0,0.00031603,30]
[330583458,1719589650765,527.22,0.00031603,30]
[330583459,1719589650804,1439.7,0.00031603,30]
[330583460,1719589650836,1437.05,0.00031603,30]
[330583461,1719589650867,500.0,0.00031603,30]
[330583462,1719589650956,830.55,0.00031603,30]
[330583463,1719589651054,527.22,0.00031603,30]
[330583464,1719589651118,1439.7,0.00031603,30]
[330583465,1719589651169,2899.62,0.00031603,30]
[330583466,1719589651204,1437.05,0.00031603,30]
[330583467,1719589651235,500.0,0.00031603,30]
[330583468,1719589651392,830.55,0.00031603,30]
[330583469,1719589651445,1439.7,0.00031603,30]
[330583470,1719589651479,500.0,0.00031603,30]
[330583471,1719589651534,1437.05,0.00031603,30]
[330583472,1719589651634,1056.69,0.00031603,30]
[330583473,1719589651668,500.0,0.00031603,30]
[330583474,1719589651729,830.55,0.00031603,30]
[330583475,1719589651760,527.22,0.00031603,30]
[330583476,1719589651796,1439.7,0.00031603,30]
[330583477,1719589651830,500.0,0.00031603,30]
[330583478,1719589651858,1437.05,0.00031603,30]
[330583479,1719589651900,1056.69,0.00031603,30]
[330583480,1719589651927,500.0,0.00031603,30]
[330583481,1719589651970,2899.62,0.00031603,30]
[330583482,1719589652007,830.55,0.00031603,30]
[330583483,1719589652038,527.22,0.00031603,30]
[330583484,1719589652083,500.0,0.00031603,30]
[330583485,1719589652117,1437.05,0.00031603,30]
[330583486,1719589652157,1439.7,0.00031603,30]
[330583487,1719589652281,1056.69,0.00031603,30]
[330583488,1719589652314,500.0,0.00031603,30]
[330583489,1719589652370,527.22,0.00031603,30]
[330583490,1719589652413,830.55,0.00031603,30]
[330583491,1719589652444,1437.05,0.00031603,30]
[330583492,1719589652484,500.0,0.00031603,30]
[330583493,1719589652513,1439.7,0.00031603,30]
[330583494,1719589652547,472.55507036,0.00031603,30]
[330583495,1719589652577,2899.62,0.00031603,30]
[330583496,1719589652615,500.0,0.00031603,30]
[330583497,1719589652644,1056.69,0.00031603,30]
[330583498,1719589652678,12808.64190841,0.00031603,30]
[330583530,1719589832049,-412.61839352,0.00012,2]
[330583531,1719589832061,-150.0,0.000126,2]
[330583532,1719589832071,-300.0,0.000133,4]
[330583533,1719589832082,-600.0,0.000134,4]
[330583534,1719589832091,-550.12,0.00013442,2]
[330583535,1719589832101,-900.0,0.000135,4]
[330583536,1719589832112,-338.05915648,0.000136,4]
[330583537,1719589832132,-606.15,0.000136,4]
[330583538,1719589832144,-255.79084352,0.000136,4]
[330583539,1719589832155,-150.0,0.00013616,2]
[330583540,1719589832165,-1500.0,0.000137,5]
[330583542,1719589832176,-506.2106,0.0001377,2]
[330583544,1719589832186,-300.0,0.000138,5]
[330583546,1719589832196,-150.0,0.00013869,2]
[330583547,1719589832207,-298.25872817,0.0001387,2]
[330583548,1719589832218,-315.29707946,0.0001387,2]
[330583549,1719589832234,-1349.47797968,0.0001387,2]
[330583550,1719589832274,-5660.36809885,0.0001387,2]
[330583551,1719589832286,-24910.82058424,0.0001387,2]
[330583552,1719589832295,-169.7347945,0.000139,2]
[330583553,1719589832305,-300.0,0.000139,5]
[330583554,1719589832314,-179.6168885,0.0001399,2]
[330583555,1719589832323,-179.6168885,0.0001399,2]
[330583556,1719589832333,-179.6168885,0.0001399,2]
[330583557,1719589832348,-5438.37121701,0.00013999,2]
[330583558,1719589832358,-2701.91878417,0.00013999,2]
[330583559,1719589832368,-304.70431248,0.00013999,2]
[330583560,1719589832378,-150.0,0.00013999,2]
[330583561,1719589832389,-11850.39723529,0.00013999,2]
[330583562,1719589832399,-378325.36783773,0.00014,2]
[330583563,1719589832411,-453.4294482,0.00014,2]
[330583564,1719589832424,-2941.23816752,0.00014,2]
[330583565,1719589832435,-522.55327531,0.00014,2]
[330583566,1719589832447,-555.90330277,0.00014,2]
[330583567,1719589832459,-872.67905712,0.00014,2]
[330583568,1719589832471,-411274.23544817,0.00014,2]
[330583569,1719589832482,-327.85685687,0.00014,2]
[330583570,1719589832494,-454.25461509,0.00014,2]
[330583571,1719589832525,-1865.69249295,0.00014,2]
[330583572,1719589832536,-561.51132701,0.00014,2]
[330583573,1719589832548,-2253.76645182,0.00014,2]
[330583574,1719589832560,-5957.84753364,0.00014,2]
[330583575,1719589832571,-1044.25752579,0.00014,2]
[330583576,1719589832647,-1286.32241983,0.00014,2]
[330583577,1719589832659,-341.48088377,0.00014,2]
[330583578,1719589832688,-1275.73562343,0.00014,2]
[330583579,1719589832699,-2561.63025493,0.00014,2]
[330583580,1719589832711,-9407.71208434,0.00014,2]
[330583612,1719589838172,-6097.78606584,0.00013999,2]
[330583613,1719589838186,-6261.94602076,0.00013999,2]
[330583614,1719589838197,-32586.09005306,0.00014,2]
[330583615,1719589838262,-6547.49288137,0.00014,2]
[330583616,1719589838274,-5035.99999999,0.00014,2]
[330583617,1719589838323,-11309.65662636,0.00014,2]
[330583618,1719589838571,-2845.0,0.00014,2]
[330583619,1719589838611,-34200.0,0.00014,2]
[330583620,1719589838623,-820.5999,0.00014,2]
[330583621,1719589838697,-2820.32,0.00014,2]
[330583622,1719589839652,-750.0,0.000125,2]
[330583623,1719589839850,-7724921.9168635,0.00014,2]
[330583624,1719589839860,-163.71307365,0.00014099,2]
[330583625,1719589839870,-30877.55398029,0.00014199,2]
[330583626,1719589839879,-213.96935094,0.00014299,2]
[330583627,1719589839889,-198.69,0.00014299,2]
[330583628,1719589839899,-509.45160833,0.00014799,2]
[330583629,1719589839910,-5438.37121696,0.0001488,2]
[330583630,1719589839920,-11850.39723526,0.00014886,2]
[330583631,1719589839931,-6965.86322323,0.00014899,2]
[330583632,1719589839940,-30877.55398021,0.00014921,2]
[330583633,1719589839951,-213.96935093,0.00014989,2]
[330583634,1719589839961,-74502.10265478,0.00015,2]
[330583635,1719589839971,-210.0,0.00015211,2]
[330583636,1719589839981,-10542.48889215,0.00015399,2]
[330583637,1719589839991,-1013.16514783,0.00015479,2]
[330583638,1719589840001,-10629.96591712,0.00015535,2]
[330583639,1719589840014,-250.0,0.00015641,2]
[330583640,1719589840024,-509.4516083,0.00015644,2]
[330583641,1719589840035,-30877.55398021,0.00015644,2]
[330583642,1719589840046,-620.02,0.00015666,2]
[330583643,1719589840056,-213.96935093,0.00015679,2]
[330583644,1719589840066,-550.12,0.00015705,2]
[330583645,1719589840075,-168.95,0.00015738,2]
[330583646,1719589840087,-167.55,0.00015738,2]
[330583647,1719589840098,-5438.37121696,0.00015761,2]
[330583648,1719589840107,-11850.39723526,0.00015773,2]
[330583649,1719589840117,-210.62,0.00015776,2]
[330583650,1719589840127,-304.70431247,0.00016077,2]
[330583651,1719589840137,-30877.55398021,0.00016366,2]
[330583652,1719589840147,-213.96935093,0.00016369,2]
[330583653,1719589840157,-509.4516083,0.00016488,2]
[330583654,1719589840167,-210.62,0.00016565,2]
[330583655,1719589840177,-1758.53588891,0.00016566,2]
[330583656,1719589840187,-5438.37121696,0.00016642,2]
[330583657,1719589840196,-11309.96544732,0.0001666,2]
[330583658,1719589840209,-540.43178794,0.0001666,2]
[330583659,1719589840219,-293.0,0.00016683,2]
[330583660,1719589840228,-647.26467047,0.00016808,2]
[330583661,1719589840238,-4787.81704601,0.00016808,2]
[330583662,1719589840247,-213.96935093,0.00017059,2]
[330583663,1719589840257,-5936.68643973,0.00017089,2]
[330583677,1719589840399,-317.22995607,0.00017089,2]
[330583683,1719589840502,-2775.5403798,0.00017089,2]
[330583684,1719589840514,-923.24000028,0.00017089,2]
[330583685,1719589840526,-20924.85720433,0.00017089,2]
[330583686,1719589840536,-10000.0,0.00017185,2]
[330583687,1719589840545,-159.48679015,0.00017199,5]
[330583688,1719589840555,-210.08678767,0.00017257,2]
[330583689,1719589840565,-190.98620174,0.00017257,2]
[330583690,1719589840575,-6223.59863334,0.00017259,2]
[330583691,1719589840585,-509.4516083,0.00017333,2]
[330583692,1719589840596,-236.02,0.00017341,2]
[330583693,1719589840606,-210.62,0.00017354,2]
[330583694,1719589840616,-1141.0,0.000174,2]
[330583695,1719589840626,-1000.0,0.00017425,2]
[330583696,1719589840636,-3879.60433763,0.00017444,2]
[330583697,1719589840646,-173.76628846,0.00017444,2]
[330583698,1719589840658,-5438.37121696,0.00017523,2]
[330583699,1719589840669,-155.0,0.00017566,2]
[330583700,1719589840679,-201.05779604,0.000176,2]
[330583701,1719589840689,-892.4472,0.000176,2]
[330583702,1719589840700,-1017.0,0.000176,2]
[330583703,1719589840711,-167.19,0.00017692,2]
[330583704,1719589840721,-155.0,0.00017703,2]
[330583705,1719589840730,-213.96935093,0.00017749,2]
[330583706,1719589840740,-30877.55398021,0.00017811,2]
[330583707,1719589840749,-3000.0,0.0001782,2]
[330583708,1719589840759,-150.0,0.0001782,2]
[330583709,1719589840768,-150.0,0.0001782,2]
[330583710,1719589840778,-150.0,0.0001782,2]
[330583711,1719589840787,-150.0,0.0001782,2]
[330583712,1719589840797,-150.0,0.0001782,2]
[330583713,1719589840806,-202.50205,0.0001782,2]
[330583714,1719589840816,-336.2150137,0.00017829,2]
[330583715,1719589840825,-1024.0,0.00017867,2]
[330583716,1719589840835,-1286.44742731,0.00017889,2]
[330583717,1719589840845,-179.44383772,0.000179,2]
[330583718,1719589840855,-2701.91878417,0.00017908,2]
[330583719,1719589840867,-1000.0,0.0001791,2]
[330583720,1719589840877,-1000.0,0.0001791,2]
[330583721,1719589841223,-1000.0,0.0001791,2]
[330583722,1719589841233,-2344.34960095,0.00017925,2]
[330583723,1719589841242,-12359.73208659,0.00017936,2]
[330583724,1719589841252,-550.12,0.00017969,2]
[330583725,1719589841261,-27980.5855735,0.00017988,2]
[330583726,1719589841271,-338.40173994,0.0001799,7]
[330583727,1719589841280,-209.08499402,0.00017999,2]
[330583728,1719589841289,-2955.54409759,0.00017999,2]
[330583729,1719589841298,-632210.44801843,0.00018,2]
[330583730,1719589842021,-408.88848651,0.00018,2]
[330583731,1719589842139,-4620.65287364,0.00018,2]
[330583732,1719589842151,-3455.39202086,0.00018,2]
[330583733,1719589842393,-3714.74731119,0.00018,2]